bitfinex/quotes_ETHUSD_20250906
["timestamp","ask_amount","ask_price","bid_price","bid_amount"]
[1757192837338,140.1709449,4280.9,4280.8,0.145]
[1757192838439,141.4009449,4280.9,4280.8,0.145]
[1757192839847,142.6309449,4280.9,4280.8,0.145]
[1757192840880,145.0438449,4280.9,4280.8,0.145]
[1757192842083,146.2738449,4280.9,4280.8,0.145]
[1757192843480,147.5038449,4280.9,4280.8,0.145]
[1757192844567,139.17232686,4280.9,4280.8,0.145]
[1757192844766,140.40232686,4280.9,4280.8,0.145]
[1757192845090,138.13441889,4280.9,4280.8,2.791]
[1757192846355,139.36441889,4280.9,4280.8,2.791]
[1757192847294,139.99558167,4280.9,4280.8,2.791]
[1757192847794,139.99558167,4280.9,4280.8,0.4422]
[1757192847994,141.22558167,4280.9,4280.8,0.4422]
[1757192849215,140.59441889,4280.9,4280.8,0.4422]
[1757192849406,141.82441889,4280.9,4280.8,0.4422]
[1757192849559,144.09232686,4280.9,4280.8,0.145]
[1757192850301,144.39942686,4280.9,4280.8,0.145]
[1757192851459,145.62942686,4280.9,4280.8,0.145]
[1757192852763,146.85942686,4280.9,4280.8,0.145]
[1757192854015,146.55232686,4280.9,4280.8,0.145]
[1757192854168,147.78232686,4280.9,4280.8,0.145]
[1757192855574,149.01232686,4280.9,4280.8,0.145]
[1757192857314,150.24232686,4280.9,4280.8,0.145]
[1757192859125,151.47232686,4280.9,4280.8,0.145]
[1757192859538,151.77942686,4280.9,4280.8,0.145]
[1757192859997,152.23282686,4280.9,4280.8,0.145]
[1757192860532,151.77942686,4280.9,4280.8,0.145]
[1757192860709,153.00942686,4280.9,4280.8,0.145]
[1757192862632,154.23942686,4280.9,4280.8,0.145]
[1757192863647,154.69282686,4280.9,4280.8,0.145]
[1757192863822,155.92282686,4280.9,4280.8,0.145]
[1757192865252,157.15282686,4280.9,4280.8,0.145]
[1757192866837,158.38282686,4280.9,4280.8,0.145]
[1757192867809,157.92942686,4280.9,4280.8,0.145]
[1757192868017,155.66151889,4280.9,4280.8,0.145]
[1757192868220,157.34491889,4280.9,4280.8,0.145]
[1757192868421,156.58441889,4280.9,4280.8,0.4302]
[1757192868645,156.58441889,4280.9,4280.8,2.7403]
[1757192868844,156.58441889,4280.9,4280.8,0.145]
[1757192870461,157.81441889,4280.9,4280.8,0.145]
[1757192871772,159.04441889,4280.9,4280.8,0.145]
[1757192872773,159.34261889,4280.9,4280.8,0.145]
[1757192873655,160.57261889,4280.9,4280.8,0.145]
[1757192875394,161.80261889,4280.9,4280.8,0.145]
[1757192876959,163.03261889,4280.9,4280.8,0.145]
[1757192878024,162.73441889,4280.9,4280.8,0.145]
[1757192878202,163.03261889,4280.9,4280.8,0.145]
[1757192878515,164.71601889,4280.9,4280.8,0.145]
[1757192880018,165.94601889,4280.9,4280.8,0.145]
[1757192880723,165.49261889,4280.9,4280.8,0.145]
[1757192880897,165.49261889,4280.9,4280.8,4.016]
[1757192884114,171.00096549,4280.9,4280.8,4.016]
[1757192885029,172.23096549,4280.9,4280.8,4.016]
[1757192885238,171.96401889,4280.9,4280.8,4.016]
[1757192885389,169.63601889,4280.9,4280.8,4.016]
[1757192886625,170.41261889,4280.9,4280.8,4.016]
[1757192887290,170.11441889,4280.9,4280.8,4.016]
[1757192888126,171.34441889,4280.9,4280.8,4.016]
[1757192889916,171.64261889,4280.9,4280.8,4.016]
[1757192890118,172.87261889,4280.9,4280.8,4.016]
[1757192891443,174.10261889,4280.9,4280.8,4.016]
[1757192891911,174.56551889,4280.9,4280.8,4.016]
[1757192892715,175.79551889,4280.9,4280.8,4.016]
[1757192894960,177.02551889,4280.9,4280.8,4.016]
[1757192896378,178.25551889,4280.9,4280.8,4.016]
[1757192897538,179.72731048,4280.9,4280.8,4.016]
[1757192897740,180.95731048,4280.9,4280.8,4.016]
[1757192898346,183.42121048,4280.9,4280.8,4.016]
[1757192899852,184.65121048,4280.9,4280.8,4.016]
[1757192901193,185.88121048,4280.9,4280.8,4.016]
[1757192901698,183.41731048,4280.9,4280.8,4.016]
[1757192902493,182.95441048,4280.9,4280.8,4.016]
[1757192902700,182.71261889,4280.9,4280.8,4.016]
[1757192903608,183.17551889,4280.9,4280.8,4.016]
[1757192903809,183.17625068,4280.9,4280.8,4.016]
[1757192904015,184.40625068,4280.9,4280.8,4.016]
[1757192904713,187.70776846,4280.9,4280.8,0.029]
[1757192904918,196.48109889,4280.9,4280.8,0.029]
[1757192905478,197.71109889,4280.9,4280.8,0.029]
[1757192906828,201.58209889,4280.9,4280.8,0.029]
[1757192906973,202.81209889,4280.9,4280.8,0.029]
[1757192908743,204.04209889,4280.9,4280.8,0.029]
[1757192909098,2.3361211,4280.6,4280.5,0.004]
[1757192909303,6.71214761,4280.6,4280.5,1e-08]
[1757192909525,11.19506977,4280.6,4280.5,1e-08]
[1757192909732,11.28867983,4280.6,4280.5,1e-08]
[1757192910033,16.09730229,4280.6,4280.5,1e-08]
[1757192910237,21.29201026,4280.6,4280.5,1e-08]
[1757192910426,20.0314881,4280.6,4280.5,1e-08]
[1757192911330,21.2614881,4280.6,4280.5,1e-08]
[1757192912644,22.4914881,4280.6,4280.5,1e-08]
[1757192914139,23.7214881,4280.6,4280.5,1e-08]
[1757192915639,24.9514881,4280.6,4280.5,1e-08]
[1757192916939,25.79138981,4280.6,4280.5,1e-08]
[1757192917141,27.02138981,4280.6,4280.5,1e-08]
[1757192917320,27.02131332,4280.6,4280.5,1e-08]
[1757192918643,28.25131332,4280.6,4280.5,1e-08]
[1757192920154,29.48131332,4280.6,4280.5,1e-08]
[1757192921752,30.71131332,4280.6,4280.5,1e-08]
[1757192922232,30.71231332,4280.6,4280.5,1e-08]
[1757192923764,31.94231332,4280.6,4280.5,1e-08]
[1757192925158,33.17231332,4280.6,4280.5,1e-08]
[1757192926658,34.40231332,4280.6,4280.5,1e-08]
[1757192928571,35.63231332,4280.6,4280.5,1e-08]
[1757192929519,33.16841332,4280.6,4280.5,1e-08]
[1757192929793,25.90449086,4280.6,4280.5,2.61820001]
[1757192929997,27.13449086,4280.6,4280.5,2.61820001]
[1757192930176,27.13449086,4280.6,4280.5,0.30260001]
[1757192931409,28.36449086,4280.6,4280.5,0.30260001]
[1757192932067,24.49349086,4280.6,4280.5,0.30260001]
[1757192932272,28.36449086,4280.6,4280.5,0.30260001]
[1757192932497,27.52466564,4280.6,4280.5,0.30260001]
[1757192932698,28.36488609,4280.6,4280.5,0.30260001]
[1757192932911,28.75466564,4280.6,4280.5,1e-08]
[1757192933336,31.55366564,4280.6,4280.5,1e-08]
[1757192933512,32.02266564,4280.6,4280.5,1e-08]
[1757192934214,33.25266564,4280.6,4280.5,1e-08]
[1757192935327,30.76146564,4280.6,4280.5,1e-08]
[1757192935528,31.99146564,4280.6,4280.5,1e-08]
[1757192936806,35.71266564,4280.6,4280.5,1e-08]
[1757192938212,36.94266564,4280.6,4280.5,1e-08]
[1757192938421,38.2031878,4280.6,4280.5,1e-08]
[1757192939848,39.4331878,4280.6,4280.5,1e-08]
[1757192940045,36.9419878,4280.6,4280.5,1e-08]
[1757192940363,2.33617568,4280.5,4280.4,1e-08]
[1757192940522,10.35743232,4280.5,4280.4,1e-08]
[1757192940920,10.75884238,4280.5,4280.4,1e-08]
[1757192941233,12.45784238,4280.5,4280.4,1e-08]
[1757192941859,2.33623025,4280.4,4280.3,1e-08]
[1757192942157,10.71195675,4280.4,4280.3,1e-08]
[1757192942333,9.75696473,4280.4,4280.3,1e-08]
[1757192942516,10.98696473,4280.4,4280.3,1e-08]
[1757192943152,10.51796473,4280.4,4280.3,1e-08]
[1757192944047,11.74796473,4280.4,4280.3,1e-08]
[1757192944662,12.21696473,4280.4,4280.3,1e-08]
[1757192944859,11.74796473,4280.4,4280.3,1e-08]
[1757192945365,12.97796473,4280.4,4280.3,1e-08]
[1757192947139,14.20796473,4280.4,4280.3,1e-08]
[1757192948169,13.90016473,4280.4,4280.3,1e-08]
[1757192948609,15.13016473,4280.4,4280.3,1e-08]
[1757192950725,16.67026473,4280.4,4280.3,1e-08]
[1757192951224,17.10136473,4280.4,4280.3,1e-08]
[1757192952121,18.33136473,4280.4,4280.3,1e-08]
[1757192953715,19.56136473,4280.4,4280.3,1e-08]
[1757192954007,19.13026473,4280.4,4280.3,1e-08]
[1757192954211,2.33628483,4280.3,4280.0,1e-08]
[1757192954413,7.34709783,4280.1,4280.0,1e-08]
[1757192954592,8.58319592,4280.1,4280.0,1e-08]
[1757192954913,11.59791562,4280.1,4280.0,1e-08]
[1757192955119,15.16430962,4280.1,4280.0,1e-08]
[1757192955413,13.90166267,4280.1,4280.0,1e-08]
[1757192955600,16.16957064,4280.1,4280.0,1e-08]
[1757192955798,17.43221759,4280.1,4280.0,1e-08]
[1757192956392,16.16957064,4280.1,4280.0,1e-08]
[1757192956592,17.39957064,4280.1,4280.0,1e-08]
[1757192956782,14.90957064,4280.1,4280.0,1e-08]
[1757192957601,13.57070462,4280.1,4280.0,1e-08]
[1757192958303,2.45324859,4280.0,4279.9,1e-08]
[1757192958502,9.09718307,4280.0,4279.9,1e-08]
[1757192959383,9.19080277,4280.0,4279.9,1e-08]
[1757192959574,9.50090277,4280.0,4279.9,1e-08]
[1757192959784,2.33661237,4279.7,4279.6,1e-08]
[1757192960020,14.60376809,4279.7,4279.6,1e-08]
[1757192960320,14.50390715,4279.7,4279.6,1e-08]
[1757192960495,14.07280715,4279.7,4279.6,1e-08]
[1757192960887,14.50390715,4279.7,4279.6,1e-08]
[1757192961089,15.73390715,4279.7,4279.6,1e-08]
[1757192961813,2.45346697,4279.6,4279.5,1e-08]
[1757192962121,4.93155341,4279.6,4279.5,1e-08]
[1757192962529,6.86377183,4279.6,4279.5,1e-08]
[1757192964641,8.09377183,4279.6,4279.5,1e-08]
[1757192966524,9.32377183,4279.6,4279.5,1e-08]
[1757192967318,8.81874532,4279.6,4279.5,1e-08]
[1757192967512,9.32299942,4279.6,4279.5,1e-08]
[1757192967713,2.33688539,4279.2,4279.1,2.3853]
[1757192968013,8.00769593,4279.2,4279.1,2.6717]
[1757192968938,8.00769593,4279.2,4279.1,3.1461]
[1757192969104,9.23769593,4279.2,4279.1,3.1461]
[1757192971656,9.23769593,4279.2,4279.1,2.6717]
[1757192975277,9.23754371,4279.2,4279.1,2.6717]
[1757192975864,4.07098727,4279.2,4279.1,2.6717]
[1757192976014,9.23754371,4279.2,4279.1,2.6717]
[1757192977159,10.46754371,4279.2,4279.1,2.6717]
[1757192978623,11.69754371,4279.2,4279.1,2.6717]
[1757192980540,12.92754371,4279.2,4279.1,0.2904]
[1757192982555,14.15754371,4279.2,4279.1,0.2904]
[1757192983433,14.78767106,4279.2,4279.1,0.2904]
[1757192984473,16.01767106,4279.2,4279.1,0.2904]
[1757192986077,17.24767106,4279.2,4279.1,0.2904]
[1757192987376,18.19051352,4279.2,4279.1,0.2904]
[1757192987674,19.42051352,4279.2,4279.1,0.2904]
[1757192989368,18.79038617,4279.2,4279.1,0.2904]
[1757192989568,20.02038617,4279.2,4279.1,0.2904]
[1757192989769,20.02038617,4279.2,4279.1,0.004]
[1757192991389,21.25038617,4279.2,4279.1,0.004]
[1757192991680,21.25038617,4279.2,4279.1,0.3058]
[1757192991888,21.25038617,4279.2,4279.1,2.559]
[1757192992377,21.25038617,4279.2,4279.1,0.3058]
[1757192992867,22.48038617,4279.2,4279.1,0.3058]
[1757192994146,23.71038617,4279.2,4279.1,0.3058]
[1757192995782,23.71038617,4279.2,4279.1,0.004]
[1757192995962,24.94038617,4279.2,4279.1,0.004]
[1757192997554,26.17038617,4279.2,4279.1,0.004]
[1757192999357,27.40038617,4279.2,4279.1,0.004]
[1757193001699,28.63038617,4279.2,4279.1,0.004]
[1757193002566,23.46382973,4279.2,4279.1,0.3058]
[1757193002771,22.52098727,4279.2,4279.1,2.9958]
[1757193003189,23.75098727,4279.2,4279.1,2.9958]
[1757193003492,24.38253679,4279.2,4279.1,3.1126]
[1757193004078,23.75098727,4279.2,4279.1,3.1126]
[1757193004455,24.98098727,4279.2,4279.1,3.1126]
[1757193006104,26.21098727,4279.2,4279.1,3.1126]
[1757193006277,26.21098727,4279.2,4279.1,3.81473625]
[1757193006903,26.21098727,4279.2,4279.1,1.12473625]
[1757193007105,26.21098727,4279.2,4279.1,4.2936]
[1757193007306,27.44098727,4279.2,4279.1,4.2936]
[1757193007506,27.44098727,4279.2,4279.1,6.5468]
[1757193008708,28.67098727,4279.2,4279.1,6.5468]
[1757193010305,29.90098727,4279.2,4279.1,6.5468]
[1757193011866,31.13098727,4279.2,4279.1,6.5468]
[1757193013015,31.13098727,4279.2,4279.1,4.2936]
[1757193013309,32.36098727,4279.2,4279.1,4.2936]
[1757193014583,33.59098727,4279.2,4279.1,4.2936]
[1757193016707,34.82098727,4279.2,4279.1,4.2936]
[1757193017909,34.82098727,4279.2,4279.1,3.9918]
[1757193018074,36.05098727,4279.2,4279.1,3.9918]
[1757193019477,37.28098727,4279.2,4279.1,3.9918]
[1757193021093,38.51098727,4279.2,4279.1,3.9918]
[1757193022627,39.74098727,4279.2,4279.1,3.9918]
[1757193023998,41.28618727,4279.2,4279.1,3.9918]
[1757193024788,41.75448727,4279.2,4279.1,3.9918]
[1757193025499,42.98448727,4279.2,4279.1,3.9918]
[1757193025699,42.51618727,4279.2,4279.1,3.9918]
[1757193026928,43.74618727,4279.2,4279.1,3.9918]
[1757193027549,43.43098727,4279.2,4279.1,3.9918]
[1757193028644,44.66098727,4279.2,4279.1,3.9918]
[1757193030442,45.89098727,4279.2,4279.1,0.1208]
[1757193030647,45.89098727,4279.2,4279.1,3.9918]
[1757193032552,47.12098727,4279.2,4279.1,3.9918]
[1757193034350,48.35098727,4279.2,4279.1,3.9918]
[1757193035754,49.58098727,4279.2,4279.1,3.9918]
[1757193037616,50.81098727,4279.2,4279.1,3.9918]
[1757193039237,52.04098727,4279.2,4279.1,3.9918]
[1757193040461,53.27098727,4279.2,4279.1,3.9918]
[1757193042161,54.50098727,4279.2,4279.1,3.9918]
[1757193043512,56.03748727,4279.2,4279.1,3.9918]
[1757193044888,57.26748727,4279.2,4279.1,3.9918]
[1757193047994,58.49748727,4279.2,4279.1,3.9918]
[1757193049294,59.72748727,4279.2,4279.1,3.9918]
[1757193051111,60.95748727,4279.2,4279.1,3.9918]
[1757193052513,62.18748727,4279.2,4279.1,3.9918]
[1757193054015,63.41748727,4279.2,4279.1,3.9918]
[1757193056094,64.34098727,4279.2,4279.1,4.2929]
[1757193056427,64.34098727,4279.2,4279.1,6.7291]
[1757193057405,65.57098727,4279.2,4279.1,7.43123625]
[1757193058429,65.57098727,4279.2,4279.1,3.56023625]
[1757193058619,65.57098727,4279.2,4279.1,1.12403625]
[1757193058817,66.80098727,4279.2,4279.1,4.99403625]
[1757193059409,66.80098727,4279.2,4279.1,1.12403625]
[1757193059731,66.80098727,4279.2,4279.1,4.99403625]
[1757193059929,66.80098727,4279.2,4279.1,7.43023625]
[1757193060134,68.03098727,4279.2,4279.1,7.86353625]
[1757193060620,68.03098727,4279.2,4279.1,7.43023625]
[1757193061590,69.26098727,4279.2,4279.1,7.43023625]
[1757193063019,70.49098727,4279.2,4279.1,7.43023625]
[1757193064309,71.72098727,4279.2,4279.1,7.43023625]
[1757193066345,72.95098727,4279.2,4279.1,7.43023625]
[1757193066547,72.95098727,4279.2,4279.1,4.99403625]
[1757193067846,74.18098727,4279.2,4279.1,4.99403625]
[1757193069310,75.41098727,4279.2,4279.1,4.99403625]
[1757193071028,76.64098727,4279.2,4279.1,4.99403625]
[1757193071229,76.64098727,4279.2,4279.1,4.69293625]
[1757193072759,77.87098727,4279.2,4279.1,4.69293625]
[1757193075063,79.10098727,4279.2,4279.1,4.69293625]
[1757193076358,80.33098727,4279.2,4279.1,4.69293625]
[1757193077359,80.64208727,4279.2,4279.1,4.69293625]
[1757193077657,81.07339274,4279.2,4279.1,4.69293625]
[1757193077861,82.30339274,4279.2,4279.1,4.69293625]
[1757193079164,81.87289274,4279.2,4279.1,4.69293625]
[1757193079366,83.10289274,4279.2,4279.1,4.69293625]
[1757193080432,83.53339274,4279.2,4279.1,4.69293625]
[1757193081632,84.76339274,4279.2,4279.1,4.69293625]
[1757193082377,84.33289274,4279.2,4279.1,4.69293625]
[1757193082871,85.56289274,4279.2,4279.1,4.69293625]
[1757193084469,86.79289274,4279.2,4279.1,4.69293625]
[1757193086174,88.02289274,4279.2,4279.1,4.69293625]
[1757193086576,88.45339274,4279.2,4279.1,4.69293625]
[1757193087797,89.68339274,4279.2,4279.1,4.69293625]
[1757193089090,90.91339274,4279.2,4279.1,4.69293625]
[1757193090445,92.14339274,4279.2,4279.1,4.69293625]
[1757193092782,93.37339274,4279.2,4279.1,4.69293625]
[1757193093681,92.94289274,4279.2,4279.1,4.69293625]
[1757193094903,94.17289274,4279.2,4279.1,4.69293625]
[1757193096202,94.60363517,4279.2,4279.1,4.69293625]
[1757193096500,95.83363517,4279.2,4279.1,4.69293625]
[1757193096890,95.40313517,4279.2,4279.1,4.69293625]
[1757193098009,96.63313517,4279.2,4279.1,4.69293625]
[1757193099504,97.86313517,4279.2,4279.1,4.69293625]
[1757193102109,99.09313517,4279.2,4279.1,4.69293625]
[1757193103517,100.32313517,4279.2,4279.1,4.69293625]
[1757193105076,101.55313517,4279.2,4279.1,4.69293625]
[1757193106472,102.78313517,4279.2,4279.1,4.69293625]
[1757193107910,103.25263517,4279.2,4279.1,4.69293625]
[1757193108115,104.48263517,4279.2,4279.1,4.69293625]
[1757193110328,105.71263517,4279.2,4279.1,4.69293625]
[1757193111831,106.94263517,4279.2,4279.1,4.69293625]
[1757193112534,106.94263517,4279.2,4279.1,6.48893625]
[1757193113532,108.17263517,4279.2,4279.1,6.48893625]
[1757193115117,109.40263517,4279.2,4279.1,6.48893625]
[1757193116587,110.63263517,4279.2,4279.1,6.48893625]
[1757193118667,111.86263517,4279.2,4279.1,6.48893625]
[1757193120949,113.09263517,4279.2,4279.1,6.48893625]
[1757193122626,114.32263517,4279.2,4279.1,6.48893625]
[1757193124457,115.55263517,4279.2,4279.1,6.48893625]
[1757193125946,116.78263517,4279.2,4279.1,6.48893625]
[1757193126429,116.31313517,4279.2,4279.1,6.48893625]
[1757193127527,117.54313517,4279.2,4279.1,6.48893625]
[1757193128856,118.77313517,4279.2,4279.1,6.48893625]
[1757193130939,120.00313517,4279.2,4279.1,6.48893625]
[1757193133178,121.23313517,4279.2,4279.1,6.48893625]
[1757193134479,122.46313517,4279.2,4279.1,6.48893625]
[1757193136289,123.69313517,4279.2,4279.1,6.48893625]
[1757193137682,124.92313517,4279.2,4279.1,6.48893625]
[1757193140991,126.15313517,4279.2,4279.1,6.48893625]
[1757193141290,127.38313517,4279.2,4279.1,6.48893625]
[1757193142348,128.61313517,4279.2,4279.1,6.48893625]
[1757193144194,129.84313517,4279.2,4279.1,6.48893625]
[1757193147090,131.07313517,4279.2,4279.1,6.48893625]
[1757193148710,132.30313517,4279.2,4279.1,6.48893625]
[1757193149968,133.53313517,4279.2,4279.1,6.48893625]
[1757193150391,133.53313517,4279.2,4279.1,2.61893625]
[1757193150593,133.53313517,4279.2,4279.1,6.48693625]
[1757193151772,134.76313517,4279.2,4279.1,6.48693625]
[1757193153395,135.99313517,4279.2,4279.1,6.48693625]
[1757193154497,137.22313517,4279.2,4279.1,6.48693625]
[1757193155972,138.45313517,4279.2,4279.1,6.48693625]
[1757193157804,139.68313517,4279.2,4279.1,6.48693625]
[1757193160015,140.91313517,4279.2,4279.1,6.48693625]
[1757193161223,142.59583517,4279.2,4279.1,6.48693625]
[1757193162524,143.82583517,4279.2,4279.1,6.48693625]
[1757193164221,145.05583517,4279.2,4279.1,6.48693625]
[1757193165529,146.28583517,4279.2,4279.1,6.48693625]
[1757193167158,147.51583517,4279.2,4279.1,6.48693625]
[1757193169055,148.74583517,4279.2,4279.1,6.48693625]
[1757193170311,148.29313517,4279.2,4279.1,6.48693625]
[1757193170512,149.52313517,4279.2,4279.1,6.48693625]
[1757193172748,150.75313517,4279.2,4279.1,6.48693625]
[1757193174473,151.98313517,4279.2,4279.1,6.48693625]
[1757193177252,153.21313517,4279.2,4279.1,6.48693625]
[1757193179151,154.44313517,4279.2,4279.1,6.48693625]
[1757193180270,155.67313517,4279.2,4279.1,6.48693625]
[1757193180443,155.36203517,4279.2,4279.1,6.48693625]
[1757193181767,155.66983517,4279.2,4279.1,6.48693625]
[1757193181968,156.89983517,4279.2,4279.1,6.48693625]
[1757193182328,157.35253517,4279.2,4279.1,6.48693625]
[1757193183467,158.58253517,4279.2,4279.1,6.48693625]
[1757193184827,159.81253517,4279.2,4279.1,6.48693625]
[1757193185872,159.81253517,4279.2,4279.1,16.48693625]
[1757193187072,161.04253517,4279.2,4279.1,16.48693625]
[1757193187733,160.58983517,4279.2,4279.1,16.48693625]
[1757193188351,161.81983517,4279.2,4279.1,16.48693625]
[1757193190579,163.04983517,4279.2,4279.1,16.48693625]
[1757193192184,164.27983517,4279.2,4279.1,16.48693625]
[1757193192786,163.97203517,4279.2,4279.1,16.48693625]
[1757193193684,165.20203517,4279.2,4279.1,16.48693625]
[1757193195880,166.43203517,4279.2,4279.1,16.48693625]
[1757193197451,167.66203517,4279.2,4279.1,16.48693625]
[1757193199561,169.18713517,4279.2,4279.1,16.48693625]
[1757193201808,170.41713517,4279.2,4279.1,16.48693625]
[1757193203107,171.64713517,4279.2,4279.1,16.48693625]
[1757193205178,172.87713517,4279.2,4279.1,16.48693625]
[1757193206677,174.55383517,4279.2,4279.1,16.48693625]
[1757193208778,175.78383517,4279.2,4279.1,16.48693625]
[1757193211218,177.01383517,4279.2,4279.1,16.48693625]
[1757193212585,178.24383517,4279.2,4279.1,16.48693625]
[1757193214028,180.06853517,4279.2,4279.1,16.48693625]
[1757193214236,181.74523517,4279.2,4279.1,16.48693625]
[1757193214805,179.47383517,4279.2,4279.1,16.48693625]
[1757193216042,180.70383517,4279.2,4279.1,16.48693625]
[1757193217587,181.93383517,4279.2,4279.1,16.48693625]
[1757193219646,181.48713517,4279.2,4279.1,19.48693625]
[1757193219807,182.71713517,4279.2,4279.1,19.48693625]
[1757193222153,183.94713517,4279.2,4279.1,19.48693625]
[1757193223424,185.17713517,4279.2,4279.1,16.48693625]
[1757193225180,182.54514978,4279.2,4279.1,12.61893625]
[1757193225381,183.77514978,4279.2,4279.1,19.07563625]
[1757193225582,183.77514978,4279.2,4279.1,18.3735]
[1757193226087,186.11203517,4279.2,4279.1,16.0706]
[1757193226286,186.11203517,4279.2,4279.1,16.77273625]
[1757193226484,186.11203517,4279.2,4279.1,16.48593625]
[1757193226685,187.34203517,4279.2,4279.1,16.48593625]
[1757193228043,188.57203517,4279.2,4279.1,16.48593625]
[1757193229661,189.80203517,4279.2,4279.1,16.48593625]
[1757193231147,191.03203517,4279.2,4279.1,16.48593625]
[1757193232688,192.26203517,4279.2,4279.1,16.48593625]
[1757193233585,192.55043517,4279.2,4279.1,16.48593625]
[1757193233890,195.46193517,4279.2,4279.1,16.48593625]
[1757193234062,196.69193517,4279.2,4279.1,16.48593625]
[1757193235787,195.48043517,4279.2,4279.1,16.48593625]
[1757193237200,196.71043517,4279.2,4279.1,16.48593625]
[1757193239487,197.94043517,4279.2,4279.1,16.48593625]
[1757193240307,197.18203517,4279.2,4279.1,16.77273625]
[1757193240874,198.41203517,4279.2,4279.1,16.77273625]
[1757193242284,199.64203517,4279.2,4279.1,16.77273625]
[1757193242985,199.64203517,4279.2,4279.1,16.48593625]
[1757193243937,200.87203517,4279.2,4279.1,16.48593625]
[1757193245391,202.10203517,4279.2,4279.1,19.07563625]
[1757193245593,202.10203517,4279.2,4279.1,16.77273625]
[1757193246522,202.10203517,4279.2,4279.1,16.48593625]
[1757193246726,203.33203517,4279.2,4279.1,16.48593625]
[1757193248318,204.56203517,4279.2,4279.1,16.48593625]
[1757193250261,206.57183517,4279.2,4279.1,16.48593625]
[1757193250469,205.79203517,4279.2,4279.1,16.78553625]
[1757193252366,207.02203517,4279.2,4279.1,16.78553625]
[1757193253789,208.25203517,4279.2,4279.1,16.78553625]
[1757193254124,208.25203517,4279.2,4279.1,16.48593625]
[1757193255296,208.55993517,4279.2,4279.1,16.48593625]
[1757193255592,209.48203517,4279.2,4279.1,16.48593625]
[1757193256836,210.71203517,4279.2,4279.1,16.48593625]
[1757193258490,211.94203517,4279.2,4279.1,16.48593625]
[1757193259807,213.17203517,4279.2,4279.1,16.48593625]
[1757193259944,213.17203517,4279.2,4279.1,16.78553625]
[1757193260142,213.17203517,4279.2,4279.1,19.04753625]
[1757193260362,213.17200109,4279.2,4279.1,19.04753625]
[1757193260847,213.17200109,4279.2,4279.1,16.78553625]
[1757193261042,213.17200109,4279.2,4279.1,16.48593625]
[1757193261247,214.40200109,4279.2,4279.1,16.48593625]
[1757193262896,215.63200109,4279.2,4279.1,16.48593625]
[1757193264106,216.86200109,4279.2,4279.1,16.48593625]
[1757193265445,218.09200109,4279.2,4279.1,16.48593625]
[1757193267279,219.32200109,4279.2,4279.1,16.48593625]
[1757193268687,220.55200109,4279.2,4279.1,16.48593625]
[1757193268986,220.85990109,4279.2,4279.1,16.48593625]
[1757193269482,220.55200109,4279.2,4279.1,16.48593625]
[1757193269688,220.55200109,4279.2,4279.1,19.04753625]
[1757193270046,221.78200109,4279.2,4279.1,19.04753625]
[1757193270386,219.4451157,4279.2,4279.1,19.04753625]
[1757193270686,222.56180109,4279.2,4279.1,16.48593625]
[1757193270861,224.96580109,4279.2,4279.1,16.48593625]
[1757193271580,226.19580109,4279.2,4279.1,16.48593625]
[1757193272989,227.42580109,4279.2,4279.1,16.48593625]
[1757193274459,228.65580109,4279.2,4279.1,16.48593625]
[1757193275377,230.92370906,4279.2,4279.1,10.004]
[1757193275591,230.92370906,4279.2,4279.1,13.87]
[1757193275902,232.15370906,4279.2,4279.1,13.87]
[1757193276065,232.15370906,4279.2,4279.1,3.87]
[1757193277103,233.38370906,4279.2,4279.1,3.87]
[1757193277803,233.38370906,4279.2,4279.1,0.004]
[1757193278106,233.38370906,4279.2,4279.1,3.87]
[1757193278567,234.61370906,4279.2,4279.1,3.87]
[1757193280373,235.84370906,4279.2,4279.1,3.87]
[1757193281702,237.07370906,4279.2,4279.1,3.87]
[1757193283207,238.30370906,4279.2,4279.1,3.87]
[1757193283412,237.79859336,4279.2,4279.1,3.87]
[1757193283608,238.30304682,4279.2,4279.1,3.87]
[1757193284425,238.30304682,4279.2,4279.1,0.004]
[1757193284625,239.53304682,4279.2,4279.1,3.87]
[1757193285887,240.76304682,4279.2,4279.1,3.87]
[1757193287547,241.99304682,4279.2,4279.1,3.87]
[1757193289137,243.22304682,4279.2,4279.1,3.87]
[1757193289794,240.81904682,4279.2,4279.1,3.87]
[1757193290492,242.04904682,4279.2,4279.1,3.87]
[1757193290695,241.26924682,4279.2,4279.1,3.87]
[1757193291933,242.49924682,4279.2,4279.1,3.87]
[1757193292839,242.80364682,4279.2,4279.1,3.87]
[1757193293045,242.80364682,4279.2,4279.1,13.87]
[1757193293246,244.03364682,4279.2,4279.1,13.87]
[1757193294524,245.26364682,4279.2,4279.1,13.87]
[1757193295555,245.72754682,4279.2,4279.1,13.87]
[1757193296162,246.95754682,4279.2,4279.1,13.87]
[1757193297529,249.95870051,4279.2,4279.1,13.87]
[1757193297735,251.18870051,4279.2,4279.1,13.87]
[1757193298255,250.55824682,4279.2,4279.1,13.87]
[1757193298559,248.18754682,4279.2,4279.1,13.87]
[1757193299055,249.41754682,4279.2,4279.1,13.87]
[1757193300325,250.64754682,4279.2,4279.1,13.87]
[1757193301864,251.87754682,4279.2,4279.1,13.87]
[1757193303256,253.10754682,4279.2,4279.1,13.87]
[1757193304055,252.60309336,4279.2,4279.1,13.87]
[1757193304360,253.10783401,4279.2,4279.1,13.87]
[1757193304523,254.33783401,4279.2,4279.1,13.87]
[1757193305259,255.17889495,4279.2,4279.1,13.87]
[1757193306127,256.40889495,4279.2,4279.1,13.87]
[1757193307181,256.40889495,4279.2,4279.1,3.87]
[1757193308485,257.63889495,4279.2,4279.1,3.87]
[1757193310641,258.86889495,4279.2,4279.1,3.87]
[1757193311168,258.86889495,4279.2,4279.1,0.004]
[1757193311344,258.86889495,4279.2,4279.1,3.87]
[1757193311756,258.40499495,4279.2,4279.1,3.87]
[1757193311932,257.06268698,4279.2,4279.1,13.87]
[1757193314288,258.29268698,4279.2,4279.1,13.87]
[1757193315474,259.52268698,4279.2,4279.1,13.87]
[1757193317436,260.75268698,4279.2,4279.1,13.87]
[1757193318888,261.98268698,4279.2,4279.1,13.87]
[1757193320403,262.27088698,4279.2,4279.1,13.87]
[1757193320565,263.50088698,4279.2,4279.1,13.87]
[1757193320751,266.14829748,4279.2,4279.1,10.004]
[1757193320965,267.85004443,4279.2,4279.1,3.87]
[1757193322101,267.85004443,4279.2,4279.1,1e-08]
[1757193322278,267.85004443,4279.2,4278.7,0.004]